bitfinex-derivatives/quotes_ETHF0:USTF0_20241018
["timestamp","ask_amount","ask_price","bid_price","bid_amount"]
[1729228378921,1.8026,2616.0,2615.9,1.22891]
[1729228382929,1.38,2616.1,2615.9,3.22982902]
[1729228383229,3.2078,2616.2,2616.1,0.38238]
[1729228383230,5.0055,2616.2,2616.1,0.38238]
[1729228383425,5.0055,2616.2,2616.1,1.76238]
[1729228383426,1.7977,2616.2,2616.1,1.76238]
[1729228383630,0.4177,2616.2,2616.1,1.76238]
[1729228385421,1.7977,2616.2,2616.1,1.76238]
[1729228399838,1.7977,2616.2,2616.0,1.7901]
[1729228400143,1.38,2616.1,2616.0,2.17249]
[1729228402637,1.38,2616.1,2616.0,0.4101]
[1729228402847,1.38,2616.1,2615.8,1.38573902]
[1729228402848,0.3824,2616.0,2615.8,1.38573902]
[1729228403033,1.38,2615.9,2615.7,1.00332902]
[1729228403236,1.38,2615.8,2615.7,0.38244]
[1729228403542,0.4046,2615.9,2615.7,2.76574902]
[1729228404232,0.4046,2615.9,2615.8,1.76242]
[1729228404433,3.2078,2616.2,2616.1,0.38238]
[1729228405144,3.2078,2616.2,2616.1,0.78218]
[1729228405938,4.5878,2616.2,2616.1,0.78218]
[1729228409544,1.38,2616.2,2616.1,0.78218]
[1729228409846,4.5878,2616.2,2616.1,0.78218]
[1729228412256,4.5878,2616.2,2616.1,0.38238]
[1729228412746,1.38,2616.2,2616.1,0.38238]
[1729228412952,4.5878,2616.2,2616.1,0.38238]
[1729228414160,1.38,2616.2,2616.1,0.38238]
[1729228415849,5.37125,2616.3,2616.1,0.38238]
[1729228416755,4.9889,2616.3,2616.0,2.79556913]
[1729228416954,4.9889,2616.3,2616.2,0.38236]
[1729228417548,3.2078,2616.3,2616.2,1.76236]
[1729228417752,3.2078,2616.3,2616.2,11.58476]
[1729228418056,4.99,2616.6,2616.5,0.38232]
[1729228418741,4.99,2616.6,2616.5,0.81322]
[1729228421845,4.99,2616.6,2616.5,2.19322]
[1729228422053,0.8116,2616.9,2616.8,0.38227]
[1729228422251,2.1916,2616.9,2616.8,0.38227]
[1729228423163,0.8116,2616.9,2616.8,0.38227]
[1729228423451,2.1916,2616.9,2616.8,0.38227]
[1729228427554,5.3994,2616.9,2616.8,0.38227]
[1729228428562,2.1916,2616.9,2616.8,0.38227]
[1729228428759,5.3994,2616.9,2616.8,0.38227]
[1729228429458,2.1916,2616.9,2616.8,0.38227]
[1729228429659,5.3994,2616.9,2616.8,0.38227]
[1729228430961,0.79975,2617.0,2616.9,0.38226]
[1729228430962,0.4175,2617.0,2616.9,0.38226]
[1729228431161,0.4175,2617.0,2616.9,2.19166]
[1729228434162,0.825,2617.0,2616.9,2.19166]
[1729228440364,0.4175,2617.0,2616.9,2.19166]
[1729228440557,3.6209,2617.3,2616.9,1.8094]
[1729228440768,3.2078,2617.3,2617.2,1.76222]
[1729228441062,1.38,2617.6,2617.5,0.38217]
[1729228441063,0.807,2617.6,2617.5,0.38217]
[1729228441256,0.807,2617.6,2617.5,1.76217]
[1729228441459,2.187,2617.6,2617.5,1.76217]
[1729228441772,2.56916,2617.6,2617.4,1.76218]
[1729228442160,2.17216,2617.6,2617.4,1.76218]
[1729228442861,1.79,2617.6,2617.5,0.38217]
[1729228443064,2.17216,2617.6,2617.4,1.76218]
[1729228443267,1.38,2617.5,2617.4,1.76218]
[1729228444473,0.41,2617.6,2617.5,0.38217]
[1729228444664,0.41,2617.6,2617.5,1.76217]
[1729228445270,4.5878,2617.8,2617.5,1.38]
[1729228445464,5.0147,2617.8,2617.7,0.38214]
[1729228445680,3.6347,2617.8,2617.7,0.38214]
[1729228445859,3.6347,2617.8,2617.7,2.15824]
[1729228448371,0.3997,2618.1,2617.8,0.38213]
[1729228448372,3.6075,2618.1,2617.8,0.38213]
[1729228448572,4.0348,2618.1,2618.0,1.7621]
[1729228448975,4.0348,2618.1,2618.0,1.8061]
[1729228449175,4.0348,2618.1,2618.0,2.1882]
[1729228449778,3.6351,2618.1,2618.0,2.1882]
[1729228450067,3.2078,2618.1,2618.0,2.1882]
[1729228450378,0.4213,2618.3,2618.2,0.38207]
[1729228450565,0.4213,2618.3,2618.2,1.38]
[1729228450772,0.4213,2618.3,2618.2,1.76207]
[1729228451668,0.4213,2618.3,2618.2,1.38]
[1729228452469,0.4213,2618.3,2618.2,1.76207]
[1729228453066,8.51040879,2618.7,2618.2,1.76207]
[1729228453067,3.2078,2619.2,2618.2,15.27]
[1729228453268,0.8201,2619.1,2618.7,1.38]
[1729228453473,0.8201,2619.1,2619.0,1.38]
[1729228453672,2.2001,2619.1,2618.9,1.38]
[1729228453980,2.2001,2619.1,2618.9,1.76196]
[1729228455071,2.2001,2619.1,2619.0,1.76195]
[1729228455477,2.2001,2619.1,2619.0,0.38195]
[1729228455682,3.2078,2619.2,2619.0,1.38]
[1729228455878,3.2078,2619.2,2619.1,1.76194]
[1729228457179,1.2611,2619.5,2619.2,0.38191]
[1729228457379,1.2611,2619.5,2619.4,1.38]
[1729228458385,1.64298,2619.5,2619.4,1.38]
[1729228460680,1.2611,2619.5,2619.4,1.38]
[1729228461886,1.64298,2619.5,2619.4,1.38]
[1729228462291,1.2611,2619.5,2619.4,1.7619]
[1729228462689,0.43,2619.5,2619.4,1.7619]
[1729228463583,3.2078,2619.6,2619.5,0.38188]
[1729228463775,3.2078,2619.6,2619.5,1.76188]
[1729228464586,3.2078,2619.6,2619.5,1.38]
[1729228466194,0.80635,2619.7,2619.5,1.38]
[1729228466381,0.80635,2619.7,2619.4,0.38189]
[1729228466382,3.2078,2619.6,2619.4,0.38189]
[1729228466582,3.2078,2619.6,2619.5,1.76188]
[1729228467290,3.2078,2619.6,2619.5,3.14188]
[1729228467484,2.25254155,2619.6,2619.5,3.14188]
[1729228467692,0.8229,2620.0,2619.5,2.76]
[1729228467876,42.00471,2620.0,2619.9,1.38]
[1729228468281,41.6229,2620.0,2619.9,1.38]
[1729228468481,1.20471,2620.0,2619.9,1.38]
[1729228469194,0.8229,2620.0,2619.9,1.38]
[1729228469389,1.20471,2620.0,2619.9,1.38]
[1729228469692,0.3924,2620.0,2619.9,1.38]
[1729228469891,0.3924,2620.0,2619.9,1.76182]
[1729228472689,0.401,2620.1,2620.0,0.38181]
[1729228472886,0.401,2620.1,2620.0,1.76181]
[1729228473088,0.78279,2620.1,2620.0,1.76181]
[1729228474189,0.78279,2620.1,2620.0,1.38]
[1729228474392,0.401,2620.1,2620.0,1.38]
[1729228474584,0.401,2620.1,2620.0,1.76181]
[1729228474787,0.401,2620.1,2620.0,1.38]
[1729228474788,0.38179,2620.1,2620.0,1.38]
[1729228474988,0.78349,2620.1,2620.0,1.38]
[1729228475181,0.4017,2620.1,2620.0,1.76181]
[1729228475383,0.8194,2620.1,2620.0,1.76181]
[1729228479794,1.20119,2620.1,2620.0,1.38]
[1729228480191,0.8194,2620.1,2620.0,1.38]
[1729228480391,0.8194,2620.1,2620.0,1.76181]
[1729228481195,0.8194,2620.1,2620.0,1.38]
[1729228481694,0.8194,2620.1,2620.0,1.7958]
[1729228482800,0.8194,2620.1,2620.0,2.17761]
[1729228484807,0.8194,2620.1,2620.0,1.7958]
[1729228485107,0.8194,2620.1,2620.0,2.17761]
[1729228485305,0.8194,2620.1,2620.0,1.7958]
[1729228485501,0.8194,2620.1,2620.0,2.17761]
[1729228487407,0.4017,2620.1,2620.0,2.17761]
[1729228492218,0.78349,2620.1,2620.0,2.17761]
[1729228492412,0.4017,2620.1,2620.0,2.17761]
[1729228496705,4.01398,2620.2,2620.1,0.38179]
[1729228496706,3.2078,2620.2,2620.1,0.38179]
[1729228497013,0.4281,2620.5,2620.3,0.38175]
[1729228497014,0.8567,2620.5,2620.3,0.38175]
[1729228497314,0.8567,2620.5,2620.4,1.38]
[1729228497614,0.38177,2620.3,2620.1,1.22289]
[1729228497812,3.58957,2620.3,2620.2,1.38]
[1729228498207,44.38957,2620.3,2620.2,1.38]
[1729228499214,0.38178,2620.2,2620.1,0.4196]
[1729228499409,44.38957,2620.3,2620.1,2.18139]
[1729228499614,44.38957,2620.3,2620.2,1.38]
[1729228500014,3.58957,2620.3,2620.2,1.38]
[1729228500513,3.58957,2620.3,2620.2,1.76178]
[1729228500514,3.2078,2620.3,2620.2,1.76178]
[1729228503218,0.8567,2620.5,2620.4,0.38175]
[1729228503416,0.8567,2620.5,2620.4,1.76175]
[1729228503920,0.4281,2620.5,2620.4,1.76175]
[1729228504313,0.38172,2620.7,2620.4,1.76174]
[1729228504626,0.38172,2620.7,2620.6,1.38]
[1729228505325,3.6121,2620.8,2620.6,1.38]
[1729228505625,3.2078,2620.8,2620.7,1.76171]
[1729228509030,3.2078,2620.8,2620.7,1.38]
[1729228509526,3.2078,2620.8,2620.7,1.76171]
[1729228512234,3.2078,2620.8,2620.7,5.57771]
[1729228512521,0.7964,2621.1,2620.7,11.196]
[1729228512522,1.2018,2621.1,2620.7,11.196]
[1729228512729,0.8088,2621.1,2621.0,1.38]
[1729228512923,0.8088,2621.1,2621.0,1.76166]
[1729228513430,0.4054,2621.1,2621.0,1.76166]
[1729228513624,3.97883,2621.3,2621.1,0.38164]
[1729228513833,3.97883,2621.3,2621.2,1.7887]
[1729228514026,3.97882,2621.3,2621.2,2.17033]
[1729228514526,3.97882,2621.3,2621.2,1.7887]
[1729228515029,5.35882,2621.3,2621.1,1.38]
[1729228515220,0.38168,2620.9,2620.7,0.79039]
[1729228515535,0.38167,2621.0,2620.9,0.38168]
[1729228515735,0.80495,2621.1,2620.9,1.76168]
[1729228515932,0.80495,2621.1,2621.0,1.38]
[1729228517830,0.38165,2621.1,2621.0,1.38]
[1729228518335,0.3948,2621.2,2621.0,1.38]
[1729228518532,0.77644,2621.2,2621.1,1.38]
[1729228519435,0.3948,2621.2,2621.1,1.38]
[1729228519627,0.77643,2621.2,2621.1,1.38]
[1729228526324,0.3948,2621.2,2621.1,1.38]
[1729228526532,0.77643,2621.2,2621.1,1.38]
[1729228527232,0.3948,2621.2,2621.1,1.76165]
[1729228527433,0.3948,2621.2,2621.1,3.14165]
[1729228528231,0.77643,2621.2,2621.1,1.76165]
[1729228528540,3.2078,2621.3,2621.2,0.38163]
[1729228528839,3.2078,2621.3,2621.2,1.76163]
[1729228530522,3.58942,2621.3,2621.2,1.76163]
[1729228531036,3.2078,2621.3,2621.2,1.76163]
[1729228531237,3.58942,2621.3,2621.2,1.76163]
[1729228531436,3.2078,2621.3,2621.2,1.76163]
[1729228533932,3.2078,2621.3,2621.2,1.38]
[1729228534139,3.2078,2621.3,2621.2,1.76163]
[1729228535248,3.58942,2621.3,2621.2,1.38]
[1729228535635,3.2078,2621.3,2621.2,1.76163]
[1729228535937,3.58942,2621.3,2621.2,1.76163]
[1729228536132,3.2078,2621.3,2621.2,1.76163]
[1729228536339,3.2078,2621.3,2621.2,1.38]
[1729228536539,3.58942,2621.3,2621.2,1.76163]
[1729228536741,3.58942,2621.3,2621.2,1.38]
[1729228536941,3.58942,2621.3,2621.2,1.76163]
[1729228537643,3.58942,2621.3,2621.2,1.38]
[1729228537938,3.2078,2621.3,2621.2,1.76163]
[1729228538339,3.58942,2621.3,2621.2,1.76163]
[1729228542549,3.2078,2621.3,2621.2,1.76163]
[1729228543251,3.58942,2621.3,2621.2,1.76163]
[1729228543439,3.2078,2621.3,2621.2,1.76163]
[1729228543748,3.58942,2621.3,2621.2,1.76163]
[1729228545453,3.2078,2621.3,2621.2,1.76163]
[1729228550243,0.38161,2621.4,2621.2,1.76163]
[1729228550446,0.38161,2621.4,2621.3,1.38]
[1729228550655,3.58941,2621.4,2621.3,1.7684]
[1729228550842,0.38161,2621.4,2621.3,1.7684]
[1729228551553,3.58941,2621.4,2621.3,2.15002]
[1729228552245,0.38161,2621.4,2621.3,2.15002]
[1729228552453,3.58941,2621.4,2621.3,2.15002]
[1729228552952,0.38161,2621.4,2621.3,2.15002]
[1729228553159,3.58941,2621.4,2621.3,2.15002]
[1729228555355,3.58941,2621.4,2621.3,1.7684]
[1729228555555,3.2078,2621.4,2621.3,2.15001]
[1729228556364,3.2078,2621.4,2621.3,1.7684]
[1729228556566,3.5894,2621.4,2621.3,2.15002]
[1729228557269,3.2078,2621.4,2621.3,1.7684]
[1729228557461,0.783,2621.5,2621.3,1.7684]
[1729228557660,0.783,2621.5,2621.4,1.7616]
[1729228557865,0.4014,2621.5,2621.4,1.7616]
[1729228558261,0.4008,2621.6,2621.4,1.7616]
[1729228558262,3.2078,2621.8,2621.4,14.2775]
[1729228558461,3.2078,2621.8,2621.7,2.76]
[1729228558665,3.58935,2621.8,2621.5,1.24358]
[1729228558863,0.38158,2621.6,2621.4,2.22020125]
[1729228559068,0.38158,2621.6,2621.4,2.22019125]
[1729228559268,1.2701,2621.7,2621.5,1.38]
[1729228559569,1.65166,2621.7,2621.6,1.38]
[1729228561168,1.2701,2621.7,2621.2,0.99750125]
[1729228561467,3.2078,2621.5,2621.1,3.64400125]
[1729228561668,0.38159,2621.6,2621.2,0.4251]
[1729228561868,0.38159,2621.6,2621.4,0.3816]
[1729228562077,1.2701,2621.7,2621.2,0.4251]
[1729228562278,1.65166,2621.7,2621.6,1.38]
[1729228567780,1.65166,2621.7,2621.4,0.3816]
[1729228567781,1.2701,2621.7,2621.2,0.4251]
[1729228567982,0.38161,2621.4,2621.3,0.38161]
[1729228568186,0.38161,2621.4,2621.3,1.76161]
[1729228568489,0.77001,2621.4,2621.3,1.76161]
[1729228569188,0.3884,2621.4,2621.3,1.76161]
[1729228569574,0.77,2621.4,2621.3,1.76162]
[1729228570588,0.77,2621.4,2621.3,1.38]
[1729228571388,0.3884,2621.4,2621.3,1.38]
[1729228571690,0.3884,2621.4,2621.3,1.76162]
[1729228571893,0.3884,2621.4,2621.3,1.38]
[1729228572187,0.77,2621.4,2621.3,1.38]
[1729228572790,0.77,2621.4,2621.3,1.76162]
[1729228573493,0.3884,2621.4,2621.3,1.76162]
[1729228575590,0.77,2621.4,2621.3,1.76162]
[1729228575994,0.77,2621.4,2621.3,1.38]
[1729228576182,1.7684,2621.4,2621.0,0.77295]
[1729228576391,1.7684,2621.4,2620.9,1.17907]
[1729228576392,3.2078,2621.2,2620.9,1.17907]
[1729228576690,3.2078,2621.2,2621.1,1.38]
[1729228576691,4.96943,2621.2,2621.1,1.38]
[1729228576896,3.58943,2621.2,2621.1,1.38]
[1729228582997,3.2078,2621.2,2620.9,0.38168]
[1729228583290,0.405,2621.1,2620.8,0.43]
[1729228583496,0.78666,2621.1,2620.9,0.38168]
[1729228583686,0.78666,2621.1,2620.9,0.77138]
[1729228583882,0.78666,2621.1,2621.0,0.38166]
[1729228584083,0.405,2621.1,2620.9,0.3897]
[1729228584283,0.78666,2621.1,2621.0,1.76166]
[1729228585481,0.78666,2621.1,2621.0,1.38]
[1729228586092,0.78666,2621.1,2621.0,1.76166]
[1729228586299,3.2078,2621.2,2621.1,0.38165]
[1729228586496,0.19122218,2622.5,2621.4,0.3816]
[1729228586497,3.6064,2621.5,2621.4,0.3816]
[1729228586693,3.2078,2621.5,2621.4,1.7616]
[1729228588194,3.58935,2621.8,2621.4,5.1944]
[1729228588398,3.58935,2621.8,2621.7,1.38]
[1729228588599,3.58935,2621.8,2621.7,1.76156]
[1729228588600,3.2078,2621.8,2621.7,1.76156]
[1729228590603,3.2078,2621.9,2621.8,0.38154]
[1729228590796,3.2078,2621.9,2621.8,1.797]
[1729228590992,3.2078,2621.9,2621.6,0.4212]
[1729228591188,0.38156,2621.7,2621.6,0.4212]
[1729228591495,0.38157,2621.7,2621.6,1.38]
[1729228591693,0.79457,2621.7,2621.6,1.38]
[1729228591897,0.413,2621.7,2621.6,1.38]
[1729228592103,0.79456,2621.7,2621.6,1.38]
[1729228592988,10.2274,2621.7,2621.2,0.396]
[1729228593194,10.2274,2621.7,2621.5,1.38]
[1729228593195,1.793,2621.7,2621.5,1.38]
[1729228593395,0.38157,2621.6,2621.5,1.38]
[1729228597303,0.38161,2621.4,2621.2,0.77763]
[1729228597605,0.3816,2621.4,2621.3,1.38]
[1729228597805,0.3816,2621.4,2621.1,0.4284]
[1729228597806,4.5878,2621.4,2621.1,0.4284]
[1729228598010,0.38165,2621.1,2621.0,0.417]
[1729228598199,3.58945,2621.1,2621.0,1.797]
[1729228598795,3.2078,2621.1,2621.0,1.797]
[1729228599005,3.2078,2621.1,2621.0,2.17866]
[1729228601914,41.18164,2621.2,2621.0,2.17866]
[1729228602116,3.2078,2621.1,2621.0,0.79866]
[1729228603405,3.2078,2621.1,2621.0,2.17866]
[1729228605508,3.2078,2621.6,2621.1,0.38165]
[1729228605711,3.58937,2621.6,2621.5,1.38]
[1729228606398,0.38159,2621.5,2621.2,1.76162]
[1729228606603,1.38,2621.4,2621.2,1.76162]
[1729228606812,3.58942,2621.3,2621.2,1.76163]
[1729228607002,3.2078,2621.3,2621.2,1.76163]
[1729228608309,3.2078,2621.6,2621.5,0.38159]
[1729228608503,3.2078,2621.6,2621.5,1.76159]
[1729228608707,4.00177,2621.6,2621.5,1.76159]
[1729228609503,4.00177,2621.6,2621.5,1.38]
[1729228609999,4.00177,2621.6,2621.4,1.7616]
[1729228610600,0.79397,2621.6,2621.4,1.7616]
[1729228611012,3.2078,2621.5,2621.4,1.7616]
[1729228612314,0.79397,2621.6,2621.4,1.7616]
[1729228612513,3.2078,2621.5,2621.4,1.7616]
[1729228613017,3.58939,2621.5,2621.4,1.7616]
[1729228613508,0.3816,2621.4,2621.3,1.76161]
[1729228613915,0.3816,2621.4,2621.3,1.38]
[1729228614110,0.38165,2621.1,2621.0,1.20306]
[1729228614309,0.38165,2621.1,2621.0,2.2014]
[1729228614614,0.38165,2621.1,2621.0,2.58306]
[1729228614819,0.4083,2621.1,2621.0,2.58306]
[1729228615608,0.78995,2621.1,2621.0,2.58306]
[1729228616101,0.4083,2621.1,2621.0,2.58306]
[1729228616508,0.4083,2621.1,2621.0,2.2014]
[1729228616912,0.4083,2621.1,2621.0,2.58306]
[1729228619911,2.16995,2621.1,2621.0,2.2014]
[1729228620111,0.78995,2621.1,2621.0,1.7844]
[1729228621813,1.7883,2621.1,2620.7,0.4161]
[1729228622015,1.7883,2621.1,2620.7,2.226]
[1729228622016,1.38,2620.9,2620.7,2.226]
[1729228622216,0.38169,2620.8,2620.7,2.226]
[1729228622417,0.80559,2620.8,2620.7,2.60771]
[1729228622721,0.38171,2620.7,2620.6,0.3903]
[1729228623015,1.38,2620.7,2620.6,1.38]
[1729228623215,5.0117,2620.8,2620.7,0.38171]
[1729228623422,3.6317,2620.8,2620.7,1.76171]
[1729228623914,3.6317,2620.8,2620.7,1.38]
[1729228624108,4.01339,2620.8,2620.7,1.38]
[1729228624511,5.39339,2620.8,2620.7,1.38]
[1729228625520,2.18559,2620.8,2620.7,1.38]
[1729228625728,5.39339,2620.8,2620.7,1.38]
[1729228627318,2.18559,2620.8,2620.7,1.38]
[1729228627914,5.39339,2620.8,2620.7,1.38]
[1729228628418,2.18559,2620.8,2620.7,1.38]
[1729228628616,5.39339,2620.8,2620.7,1.38]
[1729228630026,4.01339,2620.8,2620.7,1.38]
[1729228630324,3.6317,2620.8,2620.7,2.17911]
[1729228631726,3.2078,2620.8,2620.7,2.17911]
[1729228641724,3.2078,2621.1,2620.7,1.7974]
[1729228642021,0.81083,2621.3,2621.1,0.38164]
[1729228642224,2.19083,2621.3,2621.2,0.421]
[1729228642821,0.4292,2621.3,2621.2,0.421]
[1729228643025,1.8092,2621.3,2621.2,0.80263]
[1729228643621,2.19082,2621.3,2621.2,0.80263]
[1729228643914,1.8092,2621.3,2621.2,0.80263]
[1729228646630,1.8092,2621.3,2621.2,2.58733]
[1729228647131,0.4292,2621.3,2621.2,2.58733]
[1729228647325,0.81082,2621.3,2621.2,2.58733]
[1729228651832,4.01862,2621.3,2621.2,2.58733]
[1729228653129,4.01862,2621.3,2621.2,2.2057]
[1729228653729,4.01862,2621.3,2621.2,2.58733]
[1729228654631,0.81082,2621.3,2621.2,2.58733]
[1729228655230,42.18,2621.8,2621.2,2.2057]
[1729228655431,42.18,2621.8,2621.6,1.38]
[1729228655432,0.4124,2621.7,2621.6,1.38]
[1729228655742,2.17396,2621.7,2621.5,1.76159]
[1729228657028,1.38,2621.6,2621.5,0.38159]
[1729228657231,1.38,2621.6,2621.5,1.76159]
[1729228657534,1.76157,2621.6,2621.5,1.76159]
[1729228658132,1.38,2621.6,2621.5,1.76159]
[1729228660329,1.76158,2621.6,2621.4,1.76159]
[1729228660743,1.38,2621.5,2621.4,1.7616]
[1729228661035,1.38,2621.5,2621.3,0.38161]
[1729228661036,1.76159,2621.5,2621.3,0.38161]
[1729228661228,1.2243,2621.4,2621.3,0.38161]
[1729228661433,2.98591,2621.4,2621.2,2.58732]
[1729228661629,2.6043,2621.4,2621.3,0.38162]
[1729228661935,2.6043,2621.4,2621.2,2.2057]
[1729228662138,1.38,2621.3,2621.2,0.80263]
[1729228662336,1.38,2621.3,2621.2,0.421]
[1729228662536,1.38,2621.3,2621.1,1.7691]
[1729228662537,1.76162,2621.3,2621.1,0.3891]
[1729228662838,1.38,2621.3,2621.2,0.38163]
[1729228663636,1.38,2621.3,2621.1,1.7691]
[1729228663844,1.38,2621.3,2621.2,0.38163]
[1729228664335,1.76163,2621.3,2621.1,2.15074]
[1729228664543,1.38,2621.3,2621.2,0.38163]
[1729228664836,1.38,2621.3,2621.1,1.7691]
[1729228665042,1.76162,2621.3,2621.1,2.15074]
[1729228665437,1.76162,2621.3,2621.2,0.38163]
[1729228665836,1.38,2621.3,2621.2,0.38163]
[1729228666236,1.38,2621.3,2621.2,1.76163]
[1729228669743,1.76162,2621.3,2621.2,1.76163]
[1729228670052,1.38,2621.3,2621.2,1.76163]
[1729228670733,1.76162,2621.3,2621.1,0.3891]
[1729228670938,1.76162,2621.3,2621.1,0.77074]
[1729228671147,1.76162,2621.3,2621.2,1.38]
[1729228673047,1.38,2621.3,2620.9,0.4014]
[1729228673234,4.5878,2621.0,2620.9,0.4014]
[1729228673438,4.96946,2621.0,2620.9,0.4014]
[1729228673636,4.5878,2621.0,2620.9,1.7814]
[1729228673943,4.5878,2621.0,2620.9,2.16308]
[1729228674144,5.0166,2621.0,2620.9,2.16308]
[1729228674345,5.4444,2621.0,2620.9,2.16308]
[1729228677434,4.0644,2621.0,2620.9,2.16308]
[1729228678149,0.8566,2621.0,2620.9,2.16308]
[1729228678344,4.0644,2621.0,2620.9,2.16308]
[1729228678646,3.6366,2621.0,2620.9,2.16308]
[1729228679848,0.4288,2621.0,2620.9,2.16308]
[1729228680750,3.6366,2621.0,2620.9,2.16308]
[1729228682154,3.6366,2621.0,2620.9,0.4014]
[1729228682155,5.0166,2621.0,2620.9,0.4014]
[1729228682446,0.38169,2620.9,2620.7,0.8128]
[1729228682751,0.4057,2620.8,2620.7,0.4311]
[1729228682949,0.4057,2620.8,2620.7,0.81281]
[1729228683154,0.4057,2620.8,2620.7,2.19281]
[1729228687956,1.7857,2620.8,2620.6,1.76172]
[1729228688138,0.4126,2620.7,2620.6,1.76172]
[1729228688341,0.38176,2620.4,2620.2,78.89634125]
[1729228688544,1.76176,2620.3,2620.2,78.31424]
[1729228688746,6.85126,2620.3,2620.2,77.89884]
[1729228688946,53.65126,2620.3,2620.2,72.07484]
[1729228689151,46.27126,2620.3,2620.2,72.07484]
[1729228689449,47.65126,2620.3,2620.2,72.07484]
[1729228691755,53.65126,2620.3,2620.2,72.07484]
[1729228692050,47.65126,2620.3,2620.2,72.07484]
[1729228692251,43.83526,2620.3,2620.2,72.07484]
[1729228692653,47.65206,2620.3,2620.2,72.07484]
[1729228692951,53.65206,2620.3,2620.2,72.07484]
[1729228693340,47.65206,2620.3,2620.2,72.07484]
[1729228693948,53.65206,2620.3,2620.2,72.07484]
[1729228694554,47.65206,2620.3,2620.2,72.07484]
[1729228694742,42.45526,2620.3,2620.2,72.07484]
[1729228694949,3.2078,2620.4,2620.3,0.38176]
[1729228695151,3.2078,2620.4,2620.3,2.58096]
[1729228695347,3.2078,2620.4,2620.3,3.00416]
[1729228697251,3.58955,2620.4,2620.3,2.6224]
[1729228697849,0.38176,2620.3,2620.2,72.07484]
[1729228698055,2.58906,2620.3,2620.2,72.07484]
[1729228698351,6.40586,2620.3,2620.2,72.07484]
[1729228699056,2.58906,2620.3,2620.2,72.45662]
[1729228699553,2.2073,2620.3,2620.2,72.88552]
[1729228700048,1.7831,2620.3,2620.2,74.26552]
[1729228700245,1.7831,2620.3,2620.2,72.88552]
[1729228700460,0.4031,2620.3,2620.2,74.26552]
[1729228700770,41.676,2620.7,2620.2,74.26552]
[1729228700771,4.5878,2620.8,2620.2,85.08054]
[1729228700951,4.5878,2620.8,2620.7,1.76171]
[1729228700952,3.2078,2620.8,2620.7,1.76171]
[1729228701858,3.2078,2620.8,2620.7,0.38171]
[1729228705243,1.19908,2621.0,2620.4,2.98]
[1729228705244,0.8174,2621.0,2620.4,2.98]
[1729228705448,0.404,2621.0,2620.9,0.38168]
[1729228705855,44.38945,2621.1,2620.9,0.38168]
[1729228706356,0.38168,2621.0,2620.7,0.3817]
[1729228706554,6.1878,2620.8,2620.3,0.7904]
[1729228706764,0.38171,2620.7,2620.5,0.38173]
[1729228707655,6.1878,2620.8,2620.3,0.7904]
[1729228707858,0.38173,2620.6,2620.3,1.17215]
[1729228708759,6.1878,2620.8,2620.3,1.17215]
[1729228708962,3.58955,2620.4,2620.3,0.3913]
[1729228709860,0.38176,2620.3,2620.2,72.50374]
[1729228710066,3.98216,2620.4,2620.2,72.88552]
[1729228710257,3.6004,2620.4,2620.2,72.50374]
[1729228710455,3.6004,2620.4,2620.2,72.88551]
[1729228710961,3.2078,2620.4,2620.3,0.38176]
[1729228711159,3.58952,2620.7,2620.4,0.38174]
[1729228711364,3.58952,2620.7,2620.5,0.8059]
[1729228711759,3.58951,2620.7,2620.5,1.18763]
[1729228711968,3.58951,2620.7,2620.6,0.4074]
[1729228712465,3.58951,2620.7,2620.6,0.78912]
[1729228712658,3.58951,2620.7,2620.6,0.4074]
[1729228712854,0.38172,2620.6,2620.5,0.4169]
[1729228716258,3.2078,2620.7,2620.5,0.79864]
[1729228716460,0.38172,2620.6,2620.5,0.79864]
[1729228716765,0.38172,2620.6,2620.5,0.4169]
[1729228719262,3.2078,2620.7,2620.3,0.8159]
[1729228719263,0.38175,2620.4,2620.3,0.8159]
[1729228719661,0.38175,2620.4,2620.3,0.4074]
[1729228719662,3.58955,2620.4,2620.3,0.4074]
[1729228720167,0.38176,2620.3,2620.2,72.07484]
[1729228720373,4.59916,2620.3,2620.2,72.07484]
[1729228720571,8.41596,2620.3,2620.2,72.07484]
[1729228722171,14.41596,2620.3,2620.2,72.07484]
[1729228722565,8.41596,2620.3,2620.2,72.07484]
[1729228724166,4.59916,2620.3,2620.2,72.07484]
[1729228726874,1.61916,2620.3,2620.2,72.07484]
[1729228727077,1.21466,2620.3,2620.2,72.07484]
[1729228727772,2.59466,2620.3,2620.2,72.07484]
[1729228729672,2.59466,2620.3,2620.2,72.45662]
[1729228730071,2.18226,2620.3,2620.2,72.45662]
[1729228731265,2.18226,2620.3,2620.2,73.27892]
[1729228731973,4.5878,2620.4,2620.2,74.65892]
[1729228732172,0.38176,2620.3,2620.2,73.27892]
[1729228732479,1.76176,2620.3,2620.2,73.27892]
[1729228732889,1.38,2620.3,2620.2,73.27892]
[1729228733175,1.76176,2620.3,2620.2,73.27892]
[1729228735784,4.5878,2620.3,2620.2,73.27892]
[1729228736081,3.2078,2620.3,2620.2,74.65892]